[Event "Titled Tuesday Blitz April 12 Late 2022"]
[White "Kavyev, Ruslan"]
[Black "Petrova, Irina"]
[WhiteFideId "34110981"]
[BlackFideId "14124122"]
[WhiteElo "2182"]
[BlackElo "1993"]
[Result "1-0"]
[Round "04"]
[TimeControl "180+1"]
[Date "2022.04.13"]
[WhiteClock "0:01:05"]
[BlackClock "0:00:03"]

1. d4 {[%clk 0:02:55]}  d5 {[%clk 0:02:59]} 2. c4 {[%clk 0:02:55]}  c6 {[%clk 0:02:59]} 3. Nf3 {[%clk 0:02:55]}  Nf6 {[%clk 0:02:59]} 4. g3 {[%clk 0:02:56]}  Bf5 {[%clk 0:02:56]} 5. Nc3 {[%clk 0:02:55]}  e6 {[%clk 0:02:56]} 6. Nh4 {[%clk 0:02:55]}  Be4 {[%clk 0:02:55]} 7. f3 {[%clk 0:02:55]}  Bg6 {[%clk 0:02:55]} 8. Qb3 {[%clk 0:02:55]}  Qc7 {[%clk 0:02:55]} 9. Bf4 {[%clk 0:02:54]}  Bd6 {[%clk 0:02:53]} 10. Bxd6 {[%clk 0:02:51]}  Qxd6 {[%clk 0:02:24]} 11. Nxg6 {[%clk 0:02:50]}  hxg6 {[%clk 0:02:23]} 12. Qxb7 {[%clk 0:02:50]}  O-O {[%clk 0:02:18]} 13. Qxa8 {[%clk 0:02:49]}  Qc7 {[%clk 0:02:18]} 14. cxd5 {[%clk 0:02:42]}  exd5 {[%clk 0:02:18]} 15. Rc1 {[%clk 0:02:40]}  Nbd7 {[%clk 0:02:16]} 16. Nb5 {[%clk 0:02:40]}  Qa5+ {[%clk 0:02:15]} 17. Nc3 {[%clk 0:02:29]}  Rxa8 {[%clk 0:02:15]} 18. Bg2 {[%clk 0:02:28]}  Qb4 {[%clk 0:02:12]} 19. O-O {[%clk 0:02:24]}  Qxd4+ {[%clk 0:02:11]} 20. Kh1 {[%clk 0:02:25]}  Qb6 {[%clk 0:02:08]} 21. e4 {[%clk 0:02:23]}  Qxb2 {[%clk 0:02:04]} 22. exd5 {[%clk 0:02:23]}  Nxd5 {[%clk 0:01:58]} 23. Ne4 {[%clk 0:02:22]}  N7f6 {[%clk 0:01:51]} 24. Nxf6+ {[%clk 0:02:08]}  gxf6 {[%clk 0:01:52]} 25. Rfe1 {[%clk 0:02:05]}  Qxa2 {[%clk 0:01:43]} 26. Rxc6 {[%clk 0:02:05]}  Kg7 {[%clk 0:01:36]} 27. f4 {[%clk 0:01:52]}  Rd8 {[%clk 0:01:30]} 28. h4 {[%clk 0:01:45]}  Nb4 {[%clk 0:01:26]} 29. Rc7 {[%clk 0:01:41]}  Nd3 {[%clk 0:01:16]} 30. Ree7 {[%clk 0:01:38]}  Nf2+ {[%clk 0:01:16]} 31. Kh2 {[%clk 0:01:39]}  Ng4+ {[%clk 0:01:14]} 32. Kh3 {[%clk 0:01:39]}  f5 {[%clk 0:01:10]} 33. Rxa7 {[%clk 0:01:36]}  Qb3 {[%clk 0:00:48]} 34. Rab7 {[%clk 0:01:36]}  Qc4 {[%clk 0:00:40]} 35. Rbc7 {[%clk 0:01:35]}  Qa2 {[%clk 0:00:22]} 36. Ra7 {[%clk 0:01:35]}  Qb2 {[%clk 0:00:20]} 37. Rxf7+ {[%clk 0:01:35]}  Kg8 {[%clk 0:00:21]} 38. Rfb7 {[%clk 0:01:32]}  Qd4 {[%clk 0:00:19]} 39. Bf1 {[%clk 0:01:22]}  Nf2+ {[%clk 0:00:17]} 40. Kg2 {[%clk 0:01:23]}  Ne4 {[%clk 0:00:16]} 41. Kh3 {[%clk 0:01:17]}  Rc8 {[%clk 0:00:12]} 42. Rd7 {[%clk 0:01:15]}  Qf6 {[%clk 0:00:11]} 43. Ba6 {[%clk 0:01:06]}  Rf8 {[%clk 0:00:09]} 44. Bc4+ {[%clk 0:01:06]}  Rf7 {[%clk 0:00:03]} 45. Rxf7 {[%clk 0:01:05]} 1-0


[Site "https://www.chess.com"]

[Event "Titled Tuesday Blitz April 12 Late 2022"]
[White "Khabinets, Ivan"]
[Black "Phillips, Rene"]
[WhiteFideId "14115980"]
[BlackFideId "2056275"]
[WhiteElo "2114"]
[BlackElo "2134"]
[Result "1-0"]
[Round "04"]
[TimeControl "180+1"]
[Date "2022.04.13"]
[WhiteClock "0:01:04"]
[BlackClock "0:00:32"]

1. d4 {[%clk 0:03:00]}  Nc6 {[%clk 0:02:54]} 2. d5 {[%clk 0:03:00]}  Ne5 {[%clk 0:02:53]} 3. e4 {[%clk 0:03:00]}  e6 {[%clk 0:02:53]} 4. f4 {[%clk 0:03:01]}  Ng6 {[%clk 0:02:53]} 5. c4 {[%clk 0:03:00]}  exd5 {[%clk 0:02:52]} 6. cxd5 {[%clk 0:03:00]}  Nf6 {[%clk 0:02:52]} 7. Nc3 {[%clk 0:03:01]}  Bc5 {[%clk 0:02:50]} 8. Bd3 {[%clk 0:02:59]}  d6 {[%clk 0:02:48]} 9. Nf3 {[%clk 0:02:56]}  Ng4 {[%clk 0:02:48]} 10. Rf1 {[%clk 0:02:52]}  Nxh2 {[%clk 0:02:47]} 11. Nxh2 {[%clk 0:02:48]}  Qh4+ {[%clk 0:02:47]} 12. Kd2 {[%clk 0:02:48]}  Qxh2 {[%clk 0:02:47]} 13. Qf3 {[%clk 0:02:48]}  Nh4 {[%clk 0:02:43]} 14. Bb5+ {[%clk 0:02:45]}  Kd8 {[%clk 0:02:34]} 15. Qe2 {[%clk 0:02:42]}  Qxg2 {[%clk 0:02:31]} 16. Kd3 {[%clk 0:02:39]}  Bg4 {[%clk 0:02:15]} 17. Qxg2 {[%clk 0:02:33]}  Nxg2 {[%clk 0:02:11]} 18. Na4 {[%clk 0:02:32]}  Bb6 {[%clk 0:01:59]} 19. Nxb6 {[%clk 0:02:29]}  axb6 {[%clk 0:02:00]} 20. Rg1 {[%clk 0:02:29]}  Bh3 {[%clk 0:01:56]} 21. Rh1 {[%clk 0:02:26]}  Bg4 {[%clk 0:01:46]} 22. Bd2 {[%clk 0:02:24]}  h5 {[%clk 0:01:31]} 23. Rh2 {[%clk 0:02:19]}  Bf3 {[%clk 0:01:25]} 24. Rf1 {[%clk 0:02:17]}  Bg4 {[%clk 0:01:01]} 25. a3 {[%clk 0:02:15]}  h4 {[%clk 0:00:52]} 26. Bc3 {[%clk 0:01:19]}  h3 {[%clk 0:00:51]} 27. Bxg7 {[%clk 0:01:15]}  Rh7 {[%clk 0:00:51]} 28. Bf6+ {[%clk 0:01:15]}  Kc8 {[%clk 0:00:50]} 29. Rf2 {[%clk 0:01:15]}  Ne1+ {[%clk 0:00:36]} 30. Ke3 {[%clk 0:01:09]}  Ng2+ {[%clk 0:00:32]} 31. Rfxg2 {[%clk 0:01:04]} 1-0


[Site "https://www.chess.com"]

[Event "Titled Tuesday Blitz April 12 Late 2022"]
[White "Koelle, Tobias"]
[Black "Korchmar, Vasiliy"]
[WhiteFideId "16207378"]
[BlackFideId "24131750"]
[WhiteElo "2541"]
[BlackElo "2370"]
[Result "0-1"]
[Round "04"]
[TimeControl "180+1"]
[Date "2022.04.12"]
[WhiteClock "0:00:20"]
[BlackClock "0:01:32"]

1. Nf3 {[%clk 0:03:00]}  d5 {[%clk 0:03:00]} 2. e3 {[%clk 0:03:01]}  Nf6 {[%clk 0:02:48]} 3. c4 {[%clk 0:03:00]}  c6 {[%clk 0:02:48]} 4. Nc3 {[%clk 0:02:59]}  e6 {[%clk 0:02:48]} 5. b3 {[%clk 0:03:00]}  Bd6 {[%clk 0:02:48]} 6. Bb2 {[%clk 0:03:00]}  O-O {[%clk 0:02:48]} 7. Be2 {[%clk 0:03:00]}  e5 {[%clk 0:02:38]} 8. cxd5 {[%clk 0:02:59]}  cxd5 {[%clk 0:02:39]} 9. Nb5 {[%clk 0:03:00]}  Nc6 {[%clk 0:02:33]} 10. Nxd6 {[%clk 0:03:00]}  Qxd6 {[%clk 0:02:34]} 11. d4 {[%clk 0:03:00]}  e4 {[%clk 0:02:34]} 12. Ne5 {[%clk 0:03:00]}  Ne7 {[%clk 0:02:34]} 13. O-O {[%clk 0:02:56]}  Ne8 {[%clk 0:02:34]} 14. h3 {[%clk 0:02:37]}  f6 {[%clk 0:02:31]} 15. Ng4 {[%clk 0:02:36]}  Bxg4 {[%clk 0:02:31]} 16. hxg4 {[%clk 0:02:32]}  f5 {[%clk 0:02:32]} 17. gxf5 {[%clk 0:02:32]}  Nxf5 {[%clk 0:02:33]} 18. Qc2 {[%clk 0:02:17]}  Qg6 {[%clk 0:02:11]} 19. Ba3 {[%clk 0:01:42]}  Rf7 {[%clk 0:02:05]} 20. Rac1 {[%clk 0:01:26]}  h5 {[%clk 0:01:49]} 21. Qd1 {[%clk 0:01:16]}  Nf6 {[%clk 0:01:48]} 22. Kh1 {[%clk 0:00:59]}  Ng4 {[%clk 0:01:43]} 23. Bxg4 {[%clk 0:00:57]}  hxg4 {[%clk 0:01:44]} 24. Kg1 {[%clk 0:00:19]}  Qh5 {[%clk 0:01:34]} 25. Re1 {[%clk 0:00:20]}  Rf6 {[%clk 0:01:32]} 26. Kf1 {[%clk 0:00:20]}  Ng3+ {[%clk 0:01:32]} 0-1


[Site "https://www.chess.com"]

[Event "Titled Tuesday Blitz April 12 Late 2022"]
[White "Leitao, Rafael"]
[Black "Pesotskiy, Mikhail"]
[WhiteFideId "2101246"]
[BlackFideId "34164453"]
[WhiteElo "2696"]
[BlackElo "2500"]
[Result "1-0"]
[Round "04"]
[TimeControl "180+1"]
[Date "2022.04.13"]
[WhiteClock "0:00:22"]
[BlackClock "0:00:19"]

1. c4 {[%clk 0:03:00]}  e5 {[%clk 0:02:56]} 2. Nc3 {[%clk 0:02:58]}  Nc6 {[%clk 0:02:57]} 3. Nf3 {[%clk 0:02:58]}  Nf6 {[%clk 0:02:56]} 4. e4 {[%clk 0:02:56]}  Bc5 {[%clk 0:02:52]} 5. Nxe5 {[%clk 0:02:53]}  Nxe5 {[%clk 0:02:51]} 6. d4 {[%clk 0:02:52]}  Bb4 {[%clk 0:02:42]} 7. dxe5 {[%clk 0:02:48]}  Nxe4 {[%clk 0:02:43]} 8. Qf3 {[%clk 0:02:46]}  Nxc3 {[%clk 0:02:39]} 9. bxc3 {[%clk 0:02:47]}  Bc5 {[%clk 0:02:39]} 10. Qg3 {[%clk 0:02:36]}  g6 {[%clk 0:02:16]} 11. Bh6 {[%clk 0:02:35]}  Bf8 {[%clk 0:02:13]} 12. Bg5 {[%clk 0:02:31]}  Be7 {[%clk 0:02:12]} 13. h4 {[%clk 0:02:30]}  h6 {[%clk 0:02:02]} 14. Bf4 {[%clk 0:02:26]}  b6 {[%clk 0:02:01]} 15. Bd3 {[%clk 0:02:22]}  Rg8 {[%clk 0:01:51]} 16. Bxh6 {[%clk 0:02:04]}  Bb7 {[%clk 0:01:51]} 17. O-O-O {[%clk 0:01:55]}  Ba3+ {[%clk 0:01:46]} 18. Kb1 {[%clk 0:01:54]}  Qe7 {[%clk 0:01:45]} 19. Bg5 {[%clk 0:01:51]}  Qc5 {[%clk 0:01:45]} 20. Rd2 {[%clk 0:01:42]}  Qa5 {[%clk 0:01:35]} 21. Rhd1 {[%clk 0:01:36]}  Bc6 {[%clk 0:01:11]} 22. Bc2 {[%clk 0:01:30]}  b5 {[%clk 0:01:06]} 23. e6 {[%clk 0:01:23]}  fxe6 {[%clk 0:01:03]} 24. c5 {[%clk 0:01:06]}  b4 {[%clk 0:00:45]} 25. c4 {[%clk 0:01:02]}  b3 {[%clk 0:00:45]} 26. Bxb3 {[%clk 0:00:56]}  Bxc5 {[%clk 0:00:44]} 27. Bf6 {[%clk 0:00:48]}  Rb8 {[%clk 0:00:30]} 28. Bb2 {[%clk 0:00:42]}  Bd6 {[%clk 0:00:25]} 29. Rxd6 {[%clk 0:00:40]}  cxd6 {[%clk 0:00:26]} 30. Qxd6 {[%clk 0:00:40]}  Be4+ {[%clk 0:00:20]} 31. Ka1 {[%clk 0:00:29]}  Rb7 {[%clk 0:00:21]} 32. Bf6 {[%clk 0:00:23]}  Qb4 {[%clk 0:00:19]} 33. c5 {[%clk 0:00:22]} 1-0


[Site "https://www.chess.com"]

[Event "Titled Tuesday Blitz April 12 Late 2022"]
[White "Levin, Anthony"]
[Black "Bernat, David"]
[WhiteFideId "30940680"]
[BlackFideId "2099225"]
[WhiteElo "2077"]
[BlackElo "2292"]
[Result "0-1"]
[Round "04"]
[TimeControl "180+1"]
[Date "2022.04.13"]
[WhiteClock "0:00:04"]
[BlackClock "0:00:32"]

1. d4 {[%clk 0:03:00]}  Nf6 {[%clk 0:02:58]} 2. c4 {[%clk 0:03:00]}  e6 {[%clk 0:02:58]} 3. g3 {[%clk 0:02:59]}  c5 {[%clk 0:02:54]} 4. d5 {[%clk 0:02:58]}  b5 {[%clk 0:02:54]} 5. cxb5 {[%clk 0:02:52]}  exd5 {[%clk 0:02:51]} 6. Bg2 {[%clk 0:02:45]}  Bb7 {[%clk 0:02:49]} 7. Nc3 {[%clk 0:02:45]}  Be7 {[%clk 0:02:41]} 8. Nxd5 {[%clk 0:02:44]}  Nxd5 {[%clk 0:02:39]} 9. Bxd5 {[%clk 0:02:44]}  Qb6 {[%clk 0:02:38]} 10. a4 {[%clk 0:02:36]}  a6 {[%clk 0:02:28]} 11. bxa6 {[%clk 0:02:29]}  Nxa6 {[%clk 0:02:29]} 12. Nf3 {[%clk 0:02:16]}  Nb4 {[%clk 0:02:19]} 13. Bxb7 {[%clk 0:02:16]}  Qxb7 {[%clk 0:02:20]} 14. O-O {[%clk 0:02:14]}  O-O {[%clk 0:02:20]} 15. Bd2 {[%clk 0:01:31]}  Bf6 {[%clk 0:02:19]} 16. Bc3 {[%clk 0:01:31]}  Nd5 {[%clk 0:02:04]} 17. Bxf6 {[%clk 0:01:30]}  Nxf6 {[%clk 0:02:05]} 18. Qc2 {[%clk 0:01:20]}  Rfc8 {[%clk 0:01:53]} 19. Ra3 {[%clk 0:01:04]}  Rab8 {[%clk 0:01:51]} 20. b3 {[%clk 0:01:03]}  Qb4 {[%clk 0:01:51]} 21. Rfa1 {[%clk 0:01:02]}  d5 {[%clk 0:01:13]} 22. a5 {[%clk 0:01:00]}  Ne4 {[%clk 0:01:07]} 23. a6 {[%clk 0:00:56]}  Qb6 {[%clk 0:01:08]} 24. a7 {[%clk 0:00:55]}  Ra8 {[%clk 0:01:08]} 25. Ra6 {[%clk 0:00:49]}  Qb5 {[%clk 0:01:01]} 26. Qd3 {[%clk 0:00:44]}  Qb4 {[%clk 0:00:48]} 27. Qxd5 {[%clk 0:00:38]}  Nc3 {[%clk 0:00:47]} 28. Qd3 {[%clk 0:00:29]}  Qxb3 {[%clk 0:00:46]} 29. R6a3 {[%clk 0:00:23]}  c4 {[%clk 0:00:41]} 30. Qxc3 {[%clk 0:00:22]}  Qb5 {[%clk 0:00:40]} 31. Ra5 {[%clk 0:00:19]}  Qb6 {[%clk 0:00:40]} 32. Ne5 {[%clk 0:00:12]}  h6 {[%clk 0:00:40]} 33. Nd7 {[%clk 0:00:11]}  Qc7 {[%clk 0:00:39]} 34. Qd4 {[%clk 0:00:05]}  Rd8 {[%clk 0:00:38]} 35. Rd5 {[%clk 0:00:05]}  Re8 {[%clk 0:00:35]} 36. Nb6 {[%clk 0:00:04]}  c3 {[%clk 0:00:33]} 37. Nxa8 {[%clk 0:00:03]}  Rxa8 {[%clk 0:00:34]} 38. Rc5 {[%clk 0:00:02]}  Qe7 {[%clk 0:00:31]} 39. Qxc3 {[%clk 0:00:02]}  Kh7 {[%clk 0:00:31]} 40. Rc8 {[%clk 0:00:01]}  Rxa7 {[%clk 0:00:32]} 41. Rc7 {[%clk 0:00:01]}  Rxc7 {[%clk 0:00:32]} 42. Qd3+ {[%clk 0:00:02]}  g6 {[%clk 0:00:31]} 43. Rd1 {[%clk 0:00:03]}  Rc6 {[%clk 0:00:31]} 44. h4 {[%clk 0:00:03]}  Re6 {[%clk 0:00:32]} 45. e3 {[%clk 0:00:02]}  Qf6 {[%clk 0:00:31]} 46. Qd4 {[%clk 0:00:03]}  Qf5 {[%clk 0:00:31]} 47. Qd3 {[%clk 0:00:03]}  Qg4 {[%clk 0:00:31]} 48. Qd4 {[%clk 0:00:03]}  Qf3 {[%clk 0:00:31]} 49. Qf4 {[%clk 0:00:04]}  Qxd1+ {[%clk 0:00:31]} 50. Kg2 {[%clk 0:00:04]}  Qd5+ {[%clk 0:00:31]} 51. Kh2 {[%clk 0:00:04]}  Qf5 {[%clk 0:00:31]} 52. Qc4 {[%clk 0:00:04]}  Qxf2+ {[%clk 0:00:31]} 53. Kh3 {[%clk 0:00:04]}  Rf6 {[%clk 0:00:32]} 0-1


[Site "https://www.chess.com"]

[Event "Titled Tuesday Blitz April 12 Late 2022"]
[White "Lewicki, Miroslaw"]
[Black "Xu, Yi"]
[WhiteFideId "1113380"]
[BlackFideId "8605564"]
[WhiteElo "2283"]
[BlackElo "2471"]
[Result "0-1"]
[Round "04"]
[TimeControl "180+1"]
[Date "2022.04.12"]
[WhiteClock "0:00:28"]
[BlackClock "0:00:53"]

1. b3 {[%clk 0:03:00]}  b6 {[%clk 0:02:59]} 2. Bb2 {[%clk 0:03:01]}  Bb7 {[%clk 0:02:58]} 3. Nf3 {[%clk 0:03:00]}  Nf6 {[%clk 0:02:58]} 4. g3 {[%clk 0:03:00]}  e6 {[%clk 0:02:57]} 5. Bg2 {[%clk 0:03:00]}  Be7 {[%clk 0:02:56]} 6. O-O {[%clk 0:03:01]}  O-O {[%clk 0:02:55]} 7. d4 {[%clk 0:03:02]}  d6 {[%clk 0:02:50]} 8. Nbd2 {[%clk 0:03:02]}  Nbd7 {[%clk 0:02:50]} 9. c4 {[%clk 0:02:57]}  Re8 {[%clk 0:02:50]} 10. Re1 {[%clk 0:02:56]}  Bf8 {[%clk 0:02:49]} 11. e4 {[%clk 0:02:57]}  e5 {[%clk 0:02:48]} 12. Qc2 {[%clk 0:02:51]}  g6 {[%clk 0:02:48]} 13. Rad1 {[%clk 0:02:50]}  exd4 {[%clk 0:02:46]} 14. Nxd4 {[%clk 0:02:48]}  a6 {[%clk 0:02:46]} 15. h4 {[%clk 0:02:16]}  Bg7 {[%clk 0:02:44]} 16. e5 {[%clk 0:02:13]}  dxe5 {[%clk 0:02:38]} 17. Bxb7 {[%clk 0:02:12]}  exd4 {[%clk 0:02:37]} 18. Rxe8+ {[%clk 0:02:07]}  Nxe8 {[%clk 0:02:34]} 19. Bxa8 {[%clk 0:02:06]}  Qxa8 {[%clk 0:02:35]} 20. Qe4 {[%clk 0:01:52]}  Qxe4 {[%clk 0:02:32]} 21. Nxe4 {[%clk 0:01:52]}  c5 {[%clk 0:02:32]} 22. b4 {[%clk 0:01:45]}  f5 {[%clk 0:02:30]} 23. Ng5 {[%clk 0:01:44]}  Nd6 {[%clk 0:02:27]} 24. bxc5 {[%clk 0:01:39]}  bxc5 {[%clk 0:02:24]} 25. Rc1 {[%clk 0:01:40]}  Bh6 {[%clk 0:02:15]} 26. Ba3 {[%clk 0:01:10]}  Bxg5 {[%clk 0:01:56]} 27. hxg5 {[%clk 0:01:09]}  Kf7 {[%clk 0:01:55]} 28. Kf1 {[%clk 0:01:06]}  Ne4 {[%clk 0:01:47]} 29. Ke2 {[%clk 0:01:04]}  Nxg5 {[%clk 0:01:43]} 30. Rb1 {[%clk 0:01:02]}  Ne4 {[%clk 0:01:41]} 31. Rb7 {[%clk 0:01:00]}  Ke6 {[%clk 0:01:41]} 32. Ra7 {[%clk 0:01:00]}  Ne5 {[%clk 0:01:27]} 33. Rxa6+ {[%clk 0:00:59]}  Kd7 {[%clk 0:01:25]} 34. Ra7+ {[%clk 0:00:57]}  Kd6 {[%clk 0:01:14]} 35. Rxh7 {[%clk 0:00:50]}  d3+ {[%clk 0:01:06]} 36. Ke1 {[%clk 0:00:37]}  Nf3+ {[%clk 0:00:53]} 37. Kf1 {[%clk 0:00:28]}  d2 {[%clk 0:00:53]} 0-1


[Site "https://www.chess.com"]

[Event "Titled Tuesday Blitz April 12 Late 2022"]
[White "Lossi C., Cyrano Jose"]
[Black "Isajevsky, Anton"]
[WhiteFideId "7301600"]
[BlackFideId "4142500"]
[WhiteElo "1811"]
[BlackElo "2510"]
[Result "1-0"]
[Round "04"]
[TimeControl "180+1"]
[Date "2022.04.13"]
[WhiteClock "0:00:15"]
[BlackClock "0:00:02"]

1. e4 {[%clk 0:03:00]}  g6 {[%clk 0:02:49]} 2. d4 {[%clk 0:02:59]}  Bg7 {[%clk 0:02:49]} 3. c3 {[%clk 0:02:48]}  b6 {[%clk 0:02:42]} 4. g3 {[%clk 0:02:46]}  Bb7 {[%clk 0:02:43]} 5. Bg2 {[%clk 0:02:47]}  c5 {[%clk 0:02:19]} 6. Ne2 {[%clk 0:02:45]}  d6 {[%clk 0:02:13]} 7. O-O {[%clk 0:02:44]}  Qc7 {[%clk 0:02:10]} 8. a4 {[%clk 0:02:35]}  a6 {[%clk 0:02:07]} 9. Be3 {[%clk 0:02:28]}  Nf6 {[%clk 0:02:06]} 10. Nd2 {[%clk 0:02:25]}  Ng4 {[%clk 0:01:55]} 11. Nf4 {[%clk 0:01:59]}  Nxe3 {[%clk 0:01:54]} 12. fxe3 {[%clk 0:02:00]}  O-O {[%clk 0:01:50]} 13. Qg4 {[%clk 0:01:53]}  Nd7 {[%clk 0:01:46]} 14. Nd5 {[%clk 0:01:42]}  Qd8 {[%clk 0:01:42]} 15. Qe2 {[%clk 0:01:26]}  e6 {[%clk 0:01:41]} 16. Nf4 {[%clk 0:01:23]}  Qc7 {[%clk 0:01:36]} 17. Rac1 {[%clk 0:01:18]}  Rac8 {[%clk 0:01:19]} 18. g4 {[%clk 0:01:18]}  Rfe8 {[%clk 0:01:06]} 19. g5 {[%clk 0:01:17]}  e5 {[%clk 0:01:04]} 20. Nd5 {[%clk 0:01:14]}  Bxd5 {[%clk 0:01:03]} 21. exd5 {[%clk 0:01:15]}  exd4 {[%clk 0:01:00]} 22. Qf2 {[%clk 0:00:55]}  dxe3 {[%clk 0:01:00]} 23. Qxf7+ {[%clk 0:00:54]}  Kh8 {[%clk 0:01:01]} 24. Ne4 {[%clk 0:00:46]}  e2 {[%clk 0:00:42]} 25. Rf2 {[%clk 0:00:36]}  Be5 {[%clk 0:00:08]} 26. Bh3 {[%clk 0:00:32]}  Rcd8 {[%clk 0:00:04]} 27. Kg2 {[%clk 0:00:32]}  Rf8 {[%clk 0:00:04]} 28. Qe7 {[%clk 0:00:29]}  Rfe8 {[%clk 0:00:04]} 29. Qf7 {[%clk 0:00:28]}  c4 {[%clk 0:00:05]} 30. Nf6 {[%clk 0:00:26]}  Bxf6 {[%clk 0:00:04]} 31. gxf6 {[%clk 0:00:25]}  Rg8 {[%clk 0:00:05]} 32. Be6 {[%clk 0:00:21]}  Qc8 {[%clk 0:00:02]} 33. Qe7 {[%clk 0:00:20]}  Rde8 {[%clk 0:00:02]} 34. Qxd6 {[%clk 0:00:19]}  Qc5 {[%clk 0:00:01]} 35. Qxd7 {[%clk 0:00:18]}  Qe3 {[%clk 0:00:02]} 36. Re1 {[%clk 0:00:16]}  Qe4+ {[%clk 0:00:02]} 37. Rf3 {[%clk 0:00:15]} 1-0


[Site "https://www.chess.com"]

[Event "Titled Tuesday Blitz April 12 Late 2022"]
[White "Martic, Ivan"]
[Black "Renjith, Sravan"]
[WhiteFideId "929301"]
[BlackFideId "4306783"]
[WhiteElo "2317"]
[BlackElo "1863"]
[Result "0-1"]
[Round "04"]
[TimeControl "180+1"]
[Date "2022.04.13"]
[WhiteClock "0:00:25"]
[BlackClock "0:00:43"]

1. d4 {[%clk 0:03:00]}  Nf6 {[%clk 0:02:59]} 2. Nf3 {[%clk 0:03:00]}  g6 {[%clk 0:02:58]} 3. c4 {[%clk 0:02:59]}  Bg7 {[%clk 0:02:59]} 4. Nc3 {[%clk 0:02:59]}  O-O {[%clk 0:03:00]} 5. Bg5 {[%clk 0:02:58]}  c6 {[%clk 0:02:59]} 6. e3 {[%clk 0:02:58]}  d5 {[%clk 0:02:59]} 7. Be2 {[%clk 0:02:57]}  Ne4 {[%clk 0:02:59]} 8. Bh4 {[%clk 0:02:51]}  Qa5 {[%clk 0:02:56]} 9. Qb3 {[%clk 0:02:46]}  Re8 {[%clk 0:02:39]} 10. O-O {[%clk 0:02:44]}  Nd7 {[%clk 0:02:33]} 11. cxd5 {[%clk 0:02:38]}  Nxc3 {[%clk 0:02:32]} 12. bxc3 {[%clk 0:02:38]}  cxd5 {[%clk 0:02:33]} 13. c4 {[%clk 0:02:33]}  dxc4 {[%clk 0:02:31]} 14. Bxc4 {[%clk 0:02:34]}  e6 {[%clk 0:02:31]} 15. Rfc1 {[%clk 0:02:31]}  b6 {[%clk 0:02:31]} 16. Bb5 {[%clk 0:02:27]}  a6 {[%clk 0:02:25]} 17. Bc6 {[%clk 0:02:12]}  Ra7 {[%clk 0:02:25]} 18. Nd2 {[%clk 0:02:07]}  Qxd2 {[%clk 0:02:20]} 19. Rc2 {[%clk 0:02:02]}  Qa5 {[%clk 0:02:17]} 20. Rac1 {[%clk 0:02:02]}  b5 {[%clk 0:02:12]} 21. h3 {[%clk 0:01:56]}  Rc7 {[%clk 0:02:10]} 22. Bg3 {[%clk 0:01:54]}  Ra7 {[%clk 0:02:01]} 23. Bd6 {[%clk 0:01:45]}  Qb6 {[%clk 0:01:43]} 24. Qa3 {[%clk 0:01:31]}  Bf8 {[%clk 0:01:29]} 25. Bxf8 {[%clk 0:01:26]}  Rxf8 {[%clk 0:01:28]} 26. Bf3 {[%clk 0:01:20]}  Bb7 {[%clk 0:01:25]} 27. Be2 {[%clk 0:01:09]}  Be4 {[%clk 0:01:23]} 28. Rc8 {[%clk 0:01:07]}  Ra8 {[%clk 0:01:14]} 29. R8c7 {[%clk 0:01:06]}  Ra7 {[%clk 0:01:13]} 30. Rc8 {[%clk 0:01:05]}  b4 {[%clk 0:01:08]} 31. Qa4 {[%clk 0:01:00]}  Rxc8 {[%clk 0:00:57]} 32. Rxc8+ {[%clk 0:01:01]}  Kg7 {[%clk 0:00:58]} 33. h4 {[%clk 0:00:50]}  Rc7 {[%clk 0:00:56]} 34. Re8 {[%clk 0:00:43]}  Nf6 {[%clk 0:00:55]} 35. h5 {[%clk 0:00:29]}  Bc6 {[%clk 0:00:44]} 36. h6+ {[%clk 0:00:28]}  Kxh6 {[%clk 0:00:44]} 37. Qd1 {[%clk 0:00:25]}  Nxe8 {[%clk 0:00:43]} 0-1


[Site "https://www.chess.com"]